bitfinex/quotes_ETHUSD_20240811
["timestamp","ask_amount","ask_price","bid_price","bid_amount"]
[1723412587253,3.87658,2579.6,2578.9,3.87747]
[1723412587691,3.87658,2579.6,2578.7,0.44833665]
[1723412587692,3.87658,2579.6,2579.0,3.87734]
[1723412587857,3.87658,2579.6,2578.9,3.87748]
[1723412588259,6.925332,2579.7,2578.9,3.87751]
[1723412588459,3.87682,2579.5,2578.8,3.87766]
[1723412589486,6.29574,2579.7,2578.8,3.87766]
[1723412589666,6.925314,2579.7,2578.8,3.87766]
[1723412589867,6.925314,2579.7,2579.0,3.87747]
[1723412590107,3.87644,2579.7,2579.0,3.87747]
[1723412591066,3.87644,2579.7,2579.0,7.75482]
[1723412591399,3.87644,2579.7,2579.0,3.87735]
[1723412591603,3.87663,2579.6,2579.0,3.87735]
[1723412591897,3.87625,2579.9,2579.2,3.87713]
[1723412592100,3.87625,2579.9,2579.3,3.87699]
[1723412592261,5.3784,2580.6,2579.3,2.2883]
[1723412592460,3.87554,2580.3,2579.6,3.87642]
[1723412592660,3.87523,2580.5,2579.8,3.87616]
[1723412592881,3.87523,2580.5,2579.4,0.22883]
[1723412593500,4.500593,2580.5,2579.9,3.87602]
[1723412593909,4.500593,2580.5,2579.9,3.87609]
[1723412594109,0.625363,2580.5,2579.7,3.87629]
[1723412594315,3.87546,2580.4,2579.8,3.87617]
[1723412594479,0.625363,2580.5,2579.9,3.87611]
[1723412594675,2.3784,2580.6,2579.8,3.87625]
[1723412594880,6.25358,2580.6,2580.0,3.87595]
[1723412595078,3.87521,2580.5,2579.8,3.87625]
[1723412595716,3.87521,2580.5,2579.8,3.87617]
[1723412596417,6.25358,2580.6,2579.9,3.95357923]
[1723412597019,10.12876,2580.6,2579.9,3.95357923]
[1723412597384,7.75091,2580.4,2579.8,3.87617]
[1723412597727,7.07001,2581.0,2580.0,3.87586]
[1723412597728,9.44841,2581.0,2580.0,3.87586]
[1723412597888,3.87516,2580.6,2580.0,7.75173]
[1723412598085,3.87533,2580.5,2579.8,3.87616]
[1723412598510,3.87537,2580.4,2579.8,3.87616]
[1723412598726,3.87537,2580.4,2579.8,7.75232]
[1723412598923,3.87516,2580.6,2579.9,3.87608]
[1723412599127,3.87516,2580.6,2579.8,4.651392]
[1723412599287,3.8751,2580.6,2579.9,3.95357665]
[1723412599487,3.87491,2580.7,2580.0,3.87596]
[1723412599683,5.210041,2580.9,2580.0,3.95346188]
[1723412599684,3.87476,2580.8,2580.0,3.95346188]
[1723412599924,7.74944,2580.9,2580.2,3.87556]
[1723412600110,3.87478,2580.8,2580.2,3.87556]
[1723412600984,3.87501,2580.7,2580.1,3.8758]
[1723412601894,3.87515,2580.6,2580.0,3.8759]
[1723412602102,3.87535,2580.5,2579.8,3.87616]
[1723412602511,1.012788,2580.8,2580.2,3.87554]
[1723412602686,3.87524,2580.5,2580.0,3.8759]
[1723412603395,3.8751,2580.6,2580.0,3.8759]
[1723412603694,3.87525,2580.5,2580.0,3.8759]
[1723412604220,3.87546,2580.4,2579.8,3.87613]
[1723412604425,3.87531,2580.5,2579.9,3.8761]
[1723412604786,3.87531,2580.5,2579.8,7.75244]
[1723412605098,3.87531,2580.5,2579.9,3.87609]
[1723412605502,3.87538,2580.4,2579.8,3.87618]
[1723412606287,3.87538,2580.4,2579.8,7.75232]
[1723412606522,3.87531,2580.5,2579.8,7.75232]
[1723412606523,3.87531,2580.5,2579.9,3.87609]
[1723412606698,7.75062,2580.5,2579.9,3.87609]
[1723412606899,3.87531,2580.5,2579.9,3.87609]
[1723412607525,3.87531,2580.5,2579.9,0.775223]
[1723412607818,3.87531,2580.5,2579.9,4.651243]
[1723412608590,3.87531,2580.5,2579.9,0.775223]
[1723412608822,3.87531,2580.5,2579.8,3.87612]
[1723412609027,0.23784,2580.9,2579.6,3.87644]
[1723412609028,3.87553,2580.3,2579.6,3.87644]
[1723412610089,3.87553,2580.3,2579.8,3.87624]
[1723412610292,3.87503,2580.7,2579.9,2.36582022]
[1723412610587,3.87466,2580.9,2579.9,2.36582022]
[1723412610588,3.87466,2580.9,2580.3,3.87551]
[1723412610924,3.87506,2580.7,2580.0,3.87586]
[1723412611099,3.87516,2580.6,2580.0,7.75174]
[1723412611428,3.87516,2580.6,2580.0,3.87586]
[1723412612500,3.87506,2580.7,2580.2,3.87565]
[1723412612723,3.87467,2580.9,2580.2,3.87565]
[1723412612934,3.87492,2580.7,2580.2,3.87565]
[1723412613943,3.87515,2580.6,2580.0,3.87588]
[1723412614794,3.87492,2580.7,2580.0,3.87588]
[1723412615133,4.262412,2580.7,2580.0,3.87588]
[1723412616131,3.87522,2580.5,2580.0,3.87588]
[1723412617465,3.87545,2580.4,2579.8,3.87613]
[1723412617606,3.87545,2580.4,2579.9,3.87603]
[1723412618347,3.87545,2580.4,2579.9,3.87609]
[1723412618552,3.87545,2580.4,2579.8,3.87613]
[1723412618847,7.75095,2580.4,2579.8,3.87613]
[1723412619018,3.87552,2580.3,2579.8,3.87613]
[1723412619752,3.87552,2580.3,2579.6,3.87643]
[1723412619911,3.87552,2580.3,2579.8,3.87625]
[1723412622138,2.4479,2580.1,2579.4,0.67059661]
[1723412622341,3.87668,2579.6,2578.9,3.87748]
[1723412622665,7.75339,2579.6,2578.9,4.69009383]
[1723412622813,3.87674,2579.5,2578.9,4.69009383]
[1723412623261,3.87599,2580.0,2578.5,3.87817]
[1723412623262,3.87732,2579.1,2578.5,3.87808]
[1723412623417,3.87732,2579.1,2578.5,3.87812]
[1723412623752,3.87732,2579.1,2578.3,3.87842]
[1723412623978,3.87766,2578.9,2578.4,0.39559802]
[1723412624182,3.87766,2578.9,2578.3,3.87842]
[1723412624183,3.87766,2578.9,2578.3,7.75683]
[1723412624345,7.7554,2578.9,2578.3,3.9559702]
[1723412624544,7.7554,2578.9,2578.3,3.87841]
[1723412624545,3.8778,2578.8,2578.3,3.87841]
[1723412624755,3.8778,2578.8,2578.2,0.07756262]
[1723412624959,3.8778,2578.8,2578.2,0.70932788]
[1723412625276,3.8778,2578.8,2578.2,4.58790821]
[1723412626245,3.8778,2578.8,2578.2,3.95614295]
[1723412626671,3.87793,2578.7,2578.2,3.87858]
[1723412627731,3.87766,2578.9,2578.3,3.95603589]
[1723412628447,3.87766,2578.9,2578.3,0.077561]
[1723412628648,3.87766,2578.9,2578.2,3.87858]
[1723412628989,3.87766,2578.9,2578.3,0.07756255]
[1723412629151,0.40557095,2580.5,2580.1,3.87567]
[1723412629342,0.40557095,2580.5,2579.6,3.87647]
[1723412629541,0.40557095,2580.5,2580.0,3.87582]
[1723412629744,2.4067,2580.9,2580.2,7.75114]
[1723412629972,6.28132,2580.9,2580.2,3.87557]
[1723412630176,7.288343,2580.9,2580.3,3.87548]
[1723412631095,3.413723,2580.9,2580.3,3.87548]
[1723412631243,6.28135,2580.9,2580.3,3.87548]
[1723412631662,6.28135,2580.9,2580.2,3.87557]
[1723412632581,3.87492,2580.7,2580.2,3.87557]
[1723412632955,3.87492,2580.7,2580.1,3.87578]
[1723412633423,7.74996,2580.7,2580.1,3.87578]
[1723412633696,7.74994,2580.7,2580.1,3.87578]
[1723412634008,3.87492,2580.7,2580.1,3.87578]
[1723412634505,3.87492,2580.7,2580.1,7.75148]
[1723412634956,3.87492,2580.7,2580.1,3.8757]
[1723412638398,7.74994,2580.7,2580.1,3.8757]
[1723412638808,3.87492,2580.7,2580.1,3.8757]
[1723412639206,7.74995,2580.7,2580.1,3.8757]
[1723412639408,3.87492,2580.7,2580.1,3.8757]
[1723412639595,3.87492,2580.7,2579.7,3.87628]
[1723412639596,3.87545,2580.4,2579.7,3.87628]
[1723412639798,3.87545,2580.4,2579.7,3.87631]
[1723412640399,3.87579,2580.2,2579.6,7.75299]
[1723412640567,3.87586,2580.1,2579.4,7.75363]
[1723412640770,0.2992262,2580.5,2579.3,3.87692]
[1723412640771,3.87611,2580.0,2579.3,3.87692]
[1723412640976,3.8758,2580.2,2579.5,3.8766]
[1723412641280,3.87565,2580.3,2579.6,3.87656]
[1723412642266,3.87565,2580.3,2579.6,7.75301]
[1723412642466,7.75127,2580.3,2579.6,7.75301]
[1723412642670,7.75127,2580.3,2579.3,1.020566]
[1723412642671,3.8757,2580.2,2579.4,3.87683]
[1723412642900,3.876,2580.0,2579.5,3.87671]
[1723412643086,3.8757,2580.2,2579.5,3.87671]
[1723412643287,3.8757,2580.2,2579.6,7.146604]
[1723412643507,3.8757,2580.2,2579.6,11.023084]
[1723412643710,3.8757,2580.2,2579.6,11.023004]
[1723412644287,7.7515,2580.2,2579.6,7.146524]
[1723412644596,3.8757,2580.2,2579.6,7.146524]
[1723412647188,3.8757,2580.2,2579.6,4.651824]
[1723412647774,3.87585,2580.1,2579.6,4.651824]
[1723412648886,3.87585,2580.1,2579.6,3.87647]
[1723412649082,3.87597,2580.0,2579.4,3.87674]
[1723412649306,3.87597,2580.0,2579.4,7.75351]
[1723412649515,3.87612,2579.9,2579.4,3.87674]
[1723412649684,3.87597,2580.0,2579.4,3.87674]
[1723412649873,3.87574,2580.2,2579.3,2.4419]
[1723412650079,3.87635,2579.8,2579.2,3.87708]
[1723412650792,3.87635,2579.8,2579.2,2.98730731]
[1723412652091,0.005,2581.8,2579.7,2.839]
[1723412652287,0.005,2581.8,2581.7,10.19892]
[1723412652516,0.005,2581.8,2581.7,17.69962152]
[1723412652724,1e-05,2581.8,2581.7,26.17583885]
[1723412652871,1e-05,2581.8,2581.7,23.93448227]
[1723412653072,1e-05,2581.8,2581.7,22.4884205]
[1723412653321,1e-05,2581.8,2581.7,21.74188556]
[1723412653500,1e-05,2581.8,2581.7,22.29188556]
[1723412653819,1e-05,2581.8,2581.7,22.68384406]
[1723412654531,1e-05,2581.8,2581.7,21.74188556]
[1723412654707,1e-05,2581.8,2581.7,17.86847556]
[1723412655237,1e-05,2581.8,2581.7,14.80172733]
[1723412655384,1e-05,2581.8,2581.7,7.74682]
[1723412661325,1e-05,2581.8,2581.7,3.87341]
[1723412661722,1e-05,2581.8,2581.7,3.95086798]
[1723412662152,1e-05,2581.8,2581.6,3.87343]
[1723412662563,1e-05,2581.8,2581.4,3.87382]
[1723412663261,1e-05,2581.8,2581.6,3.87351]
[1723412665441,1e-05,2581.8,2581.4,3.87372]
[1723412667065,1e-05,2581.8,2581.5,3.87368]
[1723412667220,1e-05,2581.8,2581.6,3.87346]
[1723412668045,1e-05,2581.8,2581.5,7.74721]
[1723412668272,1e-05,2581.8,2581.6,3.87353]
[1723412668573,1e-05,2581.8,2581.5,7.74718]
[1723412668750,1e-05,2581.8,2581.5,3.87358]
[1723412669174,1e-05,2581.8,2581.6,3.87356]
[1723412669686,1e-05,2581.8,2581.5,3.87358]
[1723412670356,1e-05,2581.8,2581.6,3.87355]
[1723412670890,1e-05,2581.8,2581.7,3.87341]
[1723412671187,1e-05,2581.8,2581.6,3.87355]
[1723412671769,1e-05,2581.8,2581.6,3.87347]
[1723412671982,1e-05,2581.8,2581.6,7.74691]
[1723412672159,1e-05,2581.8,2581.6,3.87345]
[1723412672356,1e-05,2581.8,2581.6,7.7469]
[1723412672826,1e-05,2581.8,2581.6,3.87345]
[1723412673354,2.30921,2581.8,2581.4,3.87377]
[1723412673690,2.540631,2581.8,2581.4,3.87379]
[1723412673868,2.540631,2581.8,2581.2,3.87402]
[1723412674388,3.87341,2581.7,2581.2,3.87402]
[1723412674553,2.540631,2581.8,2581.2,3.87402]
[1723412674888,1e-05,2581.8,2581.5,3.8737]
[1723412676069,1e-05,2581.8,2581.4,3.87378]
[1723412677091,1e-05,2581.8,2581.4,7.74749]
[1723412677299,1e-05,2581.8,2581.4,3.87372]
[1723412677498,1e-05,2581.8,2581.2,7.74812]
[1723412677654,0.387824,2581.8,2581.4,3.87372]
[1723412677859,1e-05,2581.8,2581.4,3.87372]
[1723412678467,1e-05,2581.8,2581.5,3.87361]
[1723412680694,3.87336,2581.8,2581.2,3.87412]
[1723412680899,4.261196,2581.8,2581.2,3.87412]
[1723412681500,8.134606,2581.8,2581.2,3.87412]
[1723412681960,3.87345,2581.7,2581.2,3.87412]
[1723412683570,3.87371,2581.6,2581.0,3.87442]
[1723412683795,7.1831006,2581.6,2581.0,3.87438]
[1723412684202,7.1831006,2581.6,2581.0,3.87437]
[1723412685071,7.1831006,2581.6,2581.1,3.8743]
[1723412685571,7.1831006,2581.6,2581.0,7.74875]
[1723412685790,0.71831006,2581.5,2581.0,7.74875]
[1723412686276,0.71831006,2581.5,2581.0,3.87437]
[1723412686467,0.71831006,2581.5,2581.0,7.74875]
[1723412686667,0.71831006,2581.5,2581.0,3.87437]
[1723412687108,0.79013707,2581.4,2581.0,3.87437]
[1723412687674,4.66401707,2581.4,2580.8,3.87464]
[1723412688513,1e-05,2581.8,2581.0,3.87446]
[1723412688807,1e-05,2581.8,2581.5,3.87362]
[1723412689017,1e-05,2581.8,2581.6,3.87356]
[1723412689176,1e-05,2581.8,2581.5,3.87362]
[1723412690287,1e-05,2581.8,2581.3,7.74781]
[1723412690903,1e-05,2581.8,2581.4,3.87382]
[1723412691910,1e-05,2581.8,2581.5,3.87369]
[1723412692483,1e-05,2581.8,2581.3,3.87388]
[1723412693913,1e-05,2581.8,2581.3,7.7478]
[1723412694592,1e-05,2581.8,2581.5,3.87367]
[1723412694980,1e-05,2581.8,2581.5,3.87362]
[1723412695223,1e-05,2581.8,2581.6,3.87356]
[1723412697992,1e-05,2581.8,2581.5,3.87362]
[1723412698394,1e-05,2581.8,2581.5,7.74724]
[1723412698595,1e-05,2581.8,2581.5,3.87362]
[1723412698897,1e-05,2581.8,2581.5,3.87361]
[1723412699823,1e-05,2581.8,2581.3,3.87387]
[1723412700023,1e-05,2581.8,2581.5,3.8737]
[1723412700327,1e-05,2581.8,2581.5,3.87363]
[1723412700630,1e-05,2581.8,2581.5,3.82363]
[1723412700828,1e-05,2581.8,2581.3,3.87395]
[1723412701130,4.648409,2581.8,2581.3,3.87395]
[1723412701426,1e-05,2581.8,2581.3,3.8739]
[1723412701905,3.87329,2581.8,2581.3,3.8739]
[1723412702301,7.74666,2581.8,2581.1,7.74843]
[1723412702600,0.774666,2581.7,2581.0,3.87444]
[1723412702813,0.774666,2581.7,2581.0,3.87442]
[1723412702814,3.87342,2581.7,2581.0,3.87442]
[1723412703021,3.87358,2581.6,2580.9,7.74908]
[1723412703198,3.87358,2581.6,2580.9,7.74904]
[1723412703532,3.87402,2581.3,2580.8,3.87475]
[1723412704931,3.87402,2581.3,2580.7,3.8749]
[1723412705129,6.20141,2581.4,2580.8,3.87468]
[1723412705427,4.881529,2581.3,2580.8,3.87468]
[1723412705635,8.755639,2581.3,2580.7,3.8749]
[1723412705927,4.881529,2581.3,2580.7,3.8749]
[1723412706313,3.041669,2581.3,2580.7,3.8749]
[1723412706523,3.5785859,2581.3,2580.7,3.8749]
[1723412707308,3.5785859,2581.3,2580.5,3.87512]
[1723412707512,3.8744,2581.1,2580.5,3.87512]
[1723412707806,3.87447,2581.0,2580.5,3.87512]
[1723412708833,3.87447,2581.0,2580.3,3.87544]
[1723412708834,3.87447,2581.0,2580.3,3.87539]
[1723412709139,4.649547,2580.9,2580.3,3.87539]
[1723412709340,7.74936,2580.9,2580.3,3.87539]
[1723412709709,6.2436,2580.8,2580.3,3.87539]
[1723412709914,2.3688,2580.8,2580.3,3.87539]
[1723412710648,6.24366,2580.8,2580.3,3.87539]
[1723412711007,7.255492,2580.8,2580.3,3.87539]
[1723412712007,3.87492,2580.7,2580.1,3.87573]
[1723412712215,7.74994,2580.7,2580.1,3.87573]
[1723412712409,3.87492,2580.7,2580.1,3.87573]
[1723412714025,7.74993,2580.7,2580.1,3.87573]
[1723412714354,3.8751,2580.6,2580.1,3.87573]
[1723412715422,1.1130562,2580.7,2579.5,3.94400139]
[1723412715640,2.4,2580.2,2579.5,3.87667]
[1723412715956,3.87587,2580.1,2579.5,3.87662]
[1723412717868,3.87597,2580.0,2579.5,3.87662]
[1723412718161,3.87642,2579.7,2578.9,2.4302]
[1723412718342,2.4,2579.6,2579.2,3.87714]
[1723412718710,2.4,2579.6,2579.1,3.8772]
[1723412719229,2.4,2579.6,2578.9,3.87754]
[1723412719230,6.904212,2579.6,2578.9,3.87749]
[1723412719423,3.87674,2579.5,2578.9,3.87749]
[1723412719958,3.8769,2579.4,2578.7,8.143485]
[1723412720161,3.87703,2579.3,2578.7,4.265595]
[1723412720320,3.87703,2579.3,2578.7,3.87779]
[1723412721024,7.75415,2579.3,2578.7,3.87779]
[1723412721351,3.87717,2579.2,2578.7,3.87779]
[1723412725760,3.87717,2579.2,2578.5,7.75626]
[1723412726058,7.75444,2579.2,2578.5,7.75626]
[1723412726384,3.87717,2579.2,2578.5,7.75626]
[1723412726739,3.87717,2579.2,2578.6,3.87804]
[1723412726972,4.652582,2579.2,2578.5,3.87811]
[1723412727859,4.652582,2579.2,2578.2,2.49756181]
[1723412727860,3.87765,2578.9,2578.2,2.49756181]
[1723412728182,3.87765,2578.9,2578.3,3.87844]
[1723412728477,4.505415,2578.9,2578.3,3.87844]
[1723412729077,3.87779,2578.8,2578.3,3.87844]
[1723412729640,3.87779,2578.8,2578.2,3.87865]
[1723412730165,3.87792,2578.7,2578.2,3.87865]
[1723412733853,7.75595,2578.7,2578.0,3.87884]
[1723412734056,7.75593,2578.7,2578.1,3.87873]
[1723412734782,4.7162895,2578.7,2578.1,3.87873]
[1723412737107,8.5942995,2578.7,2578.1,3.87873]
[1723412737317,7.75593,2578.7,2578.1,3.87873]
[1723412737620,3.87792,2578.7,2578.1,3.87873]
[1723412737775,7.75594,2578.7,2578.1,3.87873]
[1723412737977,3.87792,2578.7,2578.1,3.87873]
[1723412738211,7.75593,2578.7,2578.1,3.87873]
[1723412738411,8.531523,2578.7,2578.1,3.87873]
[1723412738711,4.653513,2578.7,2578.1,3.87873]
[1723412740078,4.653513,2578.7,2578.1,3.32121788]
[1723412740807,8.531523,2578.7,2578.1,3.32121788]
[1723412740981,3.87816,2578.6,2578.0,3.87884]
[1723412741183,3.87823,2578.5,2578.0,3.87884]
[1723412741377,7.75655,2578.5,2578.0,3.87884]
[1723412741719,4.890035,2578.5,2577.9,3.87906]
[1723412742511,4.890035,2578.5,2578.0,3.87896]
[1723412744589,1.011805,2578.5,2578.1,3.87872]
[1723412745817,1.011805,2578.5,2578.0,3.87896]
[1723412746215,4.890055,2578.5,2578.0,3.87896]
[1723412746512,1.011805,2578.5,2578.0,3.87889]
[1723412746904,1.011805,2578.5,2578.0,7.75777]
[1723412747680,1.011805,2578.5,2578.0,3.87888]
[1723412747895,0.7251415,2578.4,2578.0,3.87888]
[1723412751506,0.7251415,2578.4,2578.0,3.73950197]
[1723412752594,4.6035415,2578.4,2577.8,3.87918]
[1723412752803,0.7251415,2578.4,2577.8,3.87918]
[1723412753011,3.87823,2578.5,2577.9,3.87902]
[1723412753413,7.75654,2578.5,2577.9,3.87902]
[1723412753624,3.87823,2578.5,2577.9,3.87902]
[1723412753791,3.87838,2578.4,2577.9,3.87902]
[1723412754392,3.87823,2578.5,2577.9,3.87902]
[1723412754593,3.87842,2578.4,2577.9,3.87902]
[1723412754817,3.87842,2578.4,2577.9,3.77902]
[1723412756215,4.620603,2578.5,2577.9,7.65805]
[1723412756421,8.498913,2578.5,2577.9,3.77902]
[1723412756933,4.620603,2578.5,2577.9,7.65806]
[1723412757144,8.498923,2578.5,2577.9,3.77902]
[1723412757350,4.620603,2578.5,2577.9,3.77902]
[1723412757513,8.498923,2578.5,2577.9,3.77902]
[1723412757717,4.620603,2578.5,2577.9,3.77902]
[1723412757940,8.498943,2578.5,2577.9,3.77902]
[1723412758345,4.620603,2578.5,2577.9,3.77902]
[1723412758559,8.498913,2578.5,2577.9,3.77902]
[1723412758745,4.620603,2578.5,2577.9,3.77902]
[1723412760840,4.620603,2578.5,2577.9,7.65805]
[1723412761247,4.620603,2578.5,2577.9,7.65806]
[1723412761565,8.498913,2578.5,2577.9,3.77902]
[1723412761727,4.620603,2578.5,2577.9,3.77902]
[1723412762360,4.620603,2578.5,2577.9,7.65805]
[1723412762965,4.620603,2578.5,2577.9,3.77902]
[1723412763336,4.620603,2578.5,2577.9,7.65806]
[1723412765063,4.620603,2578.5,2578.0,3.87897]
[1723412765476,8.498963,2578.5,2577.9,3.77902]
[1723412765623,8.498903,2578.5,2577.9,3.77902]
[1723412765829,4.620603,2578.5,2577.9,3.77902]
[1723412766029,4.620603,2578.5,2577.9,7.65806]
[1723412766227,8.498963,2578.5,2577.9,3.77902]
[1723412766925,4.620603,2578.5,2577.9,7.65806]
[1723412767156,8.498923,2578.5,2577.9,3.77902]
[1723412767362,4.620603,2578.5,2577.9,7.65805]
[1723412767521,4.620603,2578.5,2577.9,3.77902]
[1723412767728,8.498903,2578.5,2577.9,3.77902]
[1723412768238,4.620603,2578.5,2577.9,7.65807]
[1723412768439,3.8784,2578.4,2577.9,3.77902]
[1723412769976,4.620603,2578.5,2577.9,7.65806]
[1723412770136,4.620603,2578.5,2577.9,3.77902]
[1723412770342,4.620603,2578.5,2578.0,3.87897]
[1723412772130,1.184,2578.3,2578.0,3.87897]
[1723412773185,1.184,2578.3,2578.0,3.77897]
[1723412776297,3.87823,2578.5,2578.0,3.77897]
[1723412776470,1.184,2578.4,2578.0,3.77897]
[1723412776859,1.184,2578.2,2578.0,3.77897]
[1723412777867,1.184,2578.2,2577.9,3.77902]
[1723412778373,1.184,2578.2,2578.0,3.87897]
[1723412778979,1.184,2578.2,2578.1,3.87882]
[1723412779720,1.184,2578.2,2577.9,7.658]
[1723412779883,1.184,2578.2,2578.0,3.87897]
[1723412782795,1.184,2578.2,2577.9,3.87904]
[1723412784122,1.184,2578.2,2577.9,7.75804]
[1723412784617,1.184,2578.4,2577.9,7.75804]
[1723412785241,1.184,2578.4,2578.0,3.87897]
[1723412787034,1.184,2578.4,2577.9,3.879]
[1723412787035,5.06239,2578.4,2577.9,3.879]
[1723412787206,1.184,2578.2,2577.9,3.879]
[1723412788548,1.184,2578.1,2577.9,3.879]
[1723412792914,1.184,2578.1,2577.8,3.87926]
[1723412793364,1.184,2578.1,2577.7,3.87932]
[1723412798943,3.87872,2578.2,2577.7,3.87932]
[1723412799199,1.184,2578.1,2577.7,3.87932]
[1723412801157,1.184,2578.1,2577.7,3.87835764]
[1723412803390,3.6742,2578.1,2577.7,3.87835764]
[1723412806962,1.184,2577.9,2577.7,3.87835764]
[1723412808194,1.184,2577.9,2577.5,6.87959]
[1723412809085,1.184,2577.9,2577.6,3.77955]
[1723412811528,2.4902,2578.0,2577.6,3.77955]
[1723412811724,3.6742,2578.0,2577.6,3.77955]
[1723412813091,4.51411152,2578.0,2577.6,3.77955]
[1723412814801,3.33011152,2578.0,2577.6,3.77955]
[1723412815003,4.51411152,2578.0,2577.6,3.77955]
[1723412815201,3.33011152,2578.0,2577.6,3.77955]
[1723412815622,1.184,2577.9,2577.6,3.77955]
[1723412818648,2.4902,2578.0,2577.6,3.77955]
[1723412818830,1.184,2577.9,2577.6,3.77955]
[1723412819829,2.4902,2578.0,2577.6,3.77955]
[1723412820030,1.184,2577.9,2577.6,3.77955]
[1723412821247,1.184,2577.9,2577.5,7.75924]
[1723412821414,1.184,2577.9,2577.5,7.75923]
[1723412821614,0.755304,2577.9,2577.5,3.87959]
[1723412821952,1.184,2577.8,2577.5,3.87959]
[1723412822151,1.184,2577.8,2577.5,7.75923]
[1723412822939,1.184,2577.8,2577.5,3.87959]
[1723412823154,3.6742,2578.0,2577.5,3.87959]
[1723412823487,1.143195,2577.9,2577.5,3.87959]
[1723412823864,1.184,2577.8,2577.5,3.87959]
[1723412824458,1.184,2577.6,2577.3,3.87993]
[1723412825352,1.184,2577.6,2577.1,3.88029]
[1723412825353,1.184,2577.6,2577.2,3.88017]
[1723412825547,1.690342,2577.6,2577.2,3.88017]
[1723412827977,1.690342,2577.6,2577.1,3.88029]
[1723412828588,1.690342,2577.6,2577.1,3.88024]
[1723412830556,1.184,2577.4,2577.1,3.88024]
[1723412834114,1.184,2577.4,2577.0,3.88045]
[1723412834277,1.9862622,2577.4,2577.0,3.88045]
[1723412835175,1.9862622,2577.4,2576.9,3.88053]
[1723412835475,5.8661422,2577.4,2576.9,3.88053]
[1723412835675,1.184,2577.2,2576.9,3.88053]
[1723412836289,1.77061422,2577.2,2576.9,3.88053]
[1723412837007,1.77061422,2577.2,2576.7,7.76164]
[1723412837493,1.77061422,2577.2,2576.8,3.88075]
[1723412838587,1.77061422,2577.2,2576.7,3.8808]
[1723412839596,5.65080422,2577.2,2576.7,3.8808]
[1723412839894,0.95308442,2577.1,2576.7,3.8808]
[1723412843112,1.184,2577.0,2576.7,3.8808]
[1723412843320,1.184,2577.0,2576.6,3.881]
[1723412845443,2.446,2576.9,2576.6,3.881]
[1723412845742,2.446,2576.9,2576.5,3.88113]
[1723412846114,2.446,2576.9,2576.5,7.76227]
[1723412846313,3.03261422,2577.2,2576.6,2.3914]
[1723412846509,1.184,2577.1,2576.9,3.88054]
[1723412850116,1.184,2577.1,2576.7,7.76164]
[1723412850317,1.184,2577.1,2576.8,3.88076]
[1723412852749,1.184,2577.1,2576.8,3.83076]
[1723412855456,1.690405,2577.1,2576.4,9.22528]
[1723412855660,1.184,2577.1,2576.4,9.22528]
[1723412857136,5.06435,2577.1,2576.6,3.88105]
[1723412858938,5.06435,2577.1,2576.6,3.87305]
[1723412859169,0.506435,2577.0,2576.6,3.87305]
[1723412859566,6.763735,2577.0,2576.5,3.88122]
[1723412860837,1.184,2576.9,2576.5,3.88122]
[1723412861063,1.184,2576.9,2576.4,10.76257]
[1723412861266,0.7947735,2576.8,2576.4,10.76257]
[1723412861677,0.7947735,2576.8,2576.4,6.88128]
[1723412862214,0.7947735,2576.8,2576.4,3.0]
[1723412862856,0.7947735,2576.8,2576.2,7.76313]
[1723412862857,4.6755835,2576.8,2576.2,7.76313]
[1723412863052,0.97401335,2576.7,2576.2,7.76313]
[1723412863500,2.15801335,2576.7,2576.2,7.76313]
[1723412863871,2.2608,2576.6,2576.2,7.76313]
[1723412866403,2.2608,2576.6,2576.2,3.88153]
[1723412866563,3.17025469,2576.6,2576.2,3.88153]
[1723412866762,3.17025469,2576.6,2576.1,3.8818]
[1723412868061,7.05133469,2576.6,2576.1,3.8818]
[1723412868505,3.88123,2576.5,2576.0,3.88188]
[1723412868759,6.27687447,2576.5,2575.9,2.4811]
[1723412868951,5.06523,2576.5,2576.0,3.88196]
[1723412870469,5.06523,2576.5,2575.8,3.88214]
[1723412870470,8.94656,2576.5,2575.8,3.88214]
[1723412870686,2.3139,2576.3,2575.8,3.88214]
[1723412870823,2.3139,2576.3,2575.9,3.88211]
[1723412871336,3.4979,2576.3,2575.9,3.88211]
[1723412871856,2.3139,2576.3,2575.9,3.88211]
[1723412872064,3.4979,2576.3,2575.9,3.88211]
[1723412872235,4.41198115,2576.3,2575.9,3.88211]
[1723412873065,3.22798115,2576.3,2575.8,3.88214]
[1723412873269,8.29360115,2576.3,2575.7,3.8824]
[1723412873589,1.184,2576.1,2575.7,3.8824]
[1723412875271,5.31607012,2576.2,2575.7,3.8824]
[1723412875472,1.184,2576.1,2575.7,3.8824]
[1723412875775,1.184,2576.1,2575.7,3.88235]
[1723412876745,6.19552,2576.3,2575.7,3.88235]
[1723412876972,1.184,2576.2,2575.8,3.88216]
[1723412878184,1.184,2576.2,2576.0,3.88197]
[1723412878482,1.184,2576.4,2576.1,3.88183]
[1723412878780,3.88041,2577.1,2576.1,1.005038]
[1723412878985,7.07001,2577.6,2576.2,3.54813025]
[1723412878986,2.2669,2577.3,2576.2,3.54813025]
[1723412879283,2.2669,2577.3,2576.8,3.88064]
[1723412879284,1.184,2577.2,2576.8,3.88064]
[1723412879442,1.052091,2577.1,2576.8,3.88064]
[1723412880569,2.236091,2577.1,2576.8,3.88064]
[1723412881372,1.184,2577.1,2576.8,3.88064]